[Event "21st Alekhine FIDE 2017"]
[Site "Voronezh"]
[Date "2017.06.15"]
[Round "4"]
[White "Chernov, Vladimir S"]
[Black "Filippov, Vladimir"]
[Result "1/2-1/2"]
[ECO "A41"]
[WhiteElo "2045"]
[BlackElo "1882"]
[Annotator "NA RC"]
[PlyCount "162"]
[EventDate "2017.??.??"]
[EventType "swiss"]
[EventCountry "RUS"]
[SourceTitle "playchess.com"]
[Source "ChessBase"]
[SourceQuality "1"]
[TimeControl "40/5400+30:1800+30"]

{[%evp 8,162,60,38,54,24,68,33,52,16,52,53,85,59,66,14,22,-36,3,-29,-23,-33,-21,-37,-23,-62,-41,-30,-33,-55,15,0,15,0,0,0,11,0,0,0,32,25,25,0,0,-21,0,-14,74,0,0,0,7,8,12,26,29,20,20,2,0,0,0,0,9,0,0,0,0,0,0,-104,-87,-72,-90,-131,0,32767,0,0,0,0,0,0,0,0,0,0,0,0,0,0,0,0,0,0,0,0,0,0,0,0,0,0,0,0,0,0,0,0,0,0,0,0,0,0,0,0,0,0,0,0,8,0,0,32767,32767,32767,8,0,0,0,0,0,0,0,0,0,0,0,0,0,0,0,0,0,0,0,0,0,0,0,0,0,0,0,0]} 1. d4 {[%emt 0:01:31]} d6 {[%emt 0:00:15]} 2. Nf3 {[%emt 0:00:10]} Nf6 {[%emt 0:00:07]} 3. c4 {[%emt 0:00:15]} Nbd7 {[%emt 0:00:20]} 4. Bf4 {[%emt 0:00:51]} c6 {[%emt 0:04:48]} 5. Nc3 {[%emt 0:00:54]} Qa5 {[%emt 0:02:29]} 6. Bd2 {[%emt 0:01:09] A53: Old Indian Defence without Nf3} Qc7 {[%emt 0:00:22]} 7. e3 {[%emt 0:02:23]} e5 {[%emt 0:00:34]} 8. Bd3 $146 {[%emt 0:00:50]} ({Predecessor:} 8. Qc2 Be7 9. g4 Nxg4 10. Rg1 Nf8 11. h3 Nf6 12. Rxg7 Ng6 13. Ng5 Rf8 14. Nxh7 Nxh7 15. Rxh7 {0-1 (60) Carlsen,M (2714)-Rublevsky,S (2676) Moscow 2007}) 8... Be7 {[%emt 0:01:27]} 9. O-O {[%emt 0:01:11]} Nf8 {[%emt 0:01:30]} 10. Qc2 {[%emt 0:03:14]} Bg4 {[%emt 0:06:08]} 11. Ne1 {[%emt 0:04:15]} Ne6 {[%emt 0:06:38]} 12. dxe5 {[%emt 0:01:16]} (12. d5 $14 Nc5 13. e4) 12... dxe5 {[%emt 0:01:12]} 13. f3 {[%emt 0:01:24]} Bh5 {[%emt 0:00:38]} 14. Bf5 {[%emt 0:00:37]} Bg6 {[%emt 0:00:29]} 15. Ne4 {[%emt 0:04:51]} Nxe4 {[%emt 0:05:41]} (15... Rd8 $5 {[%cal Rg6f5]} 16. Rd1 Bxf5 17. Nxf6+ Bxf6 18. Qxf5 Rd7 $15) 16. Bxe4 {[%emt 0:01:59]} O-O {[%emt 0:07:01]} 17. Bxg6 {[%emt 0:00:52]} hxg6 {[%emt 0:01:47]} 18. Nd3 {[%emt 0:00:31]} Nc5 {[%emt 0:04:47]} (18... e4 $5 19. fxe4 Bd6 $11) 19. Nxc5 {[%emt 0:00:30]} Bxc5 {[%emt 0:00:01]} 20. b4 {[%emt 0:00:16]} Be7 {[%emt 0:00:05]} 21. Bc3 {[%emt 0:00:29]} Rfe8 {[%emt 0:03:21]} 22. Rad1 {[%emt 0:01:21]} Rad8 {[%emt 0:01:22]} 23. Qe4 {[%emt 0:03:08]} Rxd1 {[%emt 0:00:34]} 24. Rxd1 {[%emt 0:00:15]} Rd8 {[%emt 0:00:30]} 25. Re1 {[%emt 0:04:20]} Bf6 {[%emt 0:02:44]} 26. a3 {[%emt 0:01:56]} Qd7 {[%emt 0:03:17]} 27. Bxe5 {[%emt 0:03:07]} Re8 {[%emt 0:01:24]} (27... Qd2 $11 28. Kf1 Rd3) 28. f4 {[%emt 0:01:11]} (28. Qd4 $1 $14 Qxd4 29. exd4) 28... Bxe5 {[%emt 0:03:13]} 29. fxe5 {[%emt 0:00:02]} Qe6 {[%emt 0:00:25]} 30. Rd1 {[%emt 0:00:51]} Qxe5 {[%emt 0:01:00]} 31. Qxe5 {[%emt 0:00:05]} Rxe5 {[%emt 0:00:18]} 32. Rd8+ {[%emt 0:00:02]} Kh7 {[%emt 0:00:25]} 33. Rd7 {[%emt 0:00:53]} Rxe3 {[%emt 0:02:10]} 34. Rxf7 {[%emt 0:00:03]} Rxa3 {[%emt 0:00:25]} 35. Rxb7 Ra2 {[%emt 0:01:07]} 36. c5 {[%emt 0:01:36]} (36. Rc7 $5 {[%cal Rc7c6]}) 36... a5 {[%emt 0:02:20]} 37. Ra7 {[%emt 0:03:36]} a4 {[%emt 0:00:21]} 38. Ra6 {[%emt 0:02:37]} a3 {[%emt 0:00:35]} 39. g4 {[%emt 0:13:07]} ({Much weaker is} 39. Rxc6 Rc2 $17) (39. h3 $11) 39... Ra1+ {[%emt 0:05:13]} 40. Kg2 {[%emt 0:00:00]} a2 {[%emt 0:00:07]} 41. h4 {[%emt 0:04:23]} (41. g5 $11 {remains equal.}) 41... Kg8 {[%emt 0:01:28]} 42. Ra7 {[%emt 0:02:35]} Kf8 {[%emt 0:00:27]} 43. Kh2 {[%emt 0:03:24]} Ke8 {[%emt 0:00:23]} (43... g5 $5 44. hxg5 Kg8 $15) 44. Kg2 {[%emt 0:01:28]} Kd8 {[%emt 0:01:23]} (44... g5 $5 45. hxg5 Kf8 $15) 45. Kh2 {[%emt 0:00:41]} Kc8 {[%emt 0:00:16]} (45... g5 $5 46. hxg5 Ke8 $11) 46. Kg2 {[%emt 0:00:13]} Kb8 {[%emt 0:01:13]} 47. Ra5 {[%emt 0:00:07]} Kb7 {[%emt 0:04:10]} 48. Kh2 {[%emt 0:01:21]} Kb8 {[%emt 0:03:31]} 49. Kg2 {[%emt 0:00:22]} Kc8 {[%emt 0:02:01]} 50. Ra7 {[%emt 0:00:11]} Kd8 {[%emt 0:00:02]} 51. Kh2 {[%emt 0:00:21]} Ke8 {[%emt 0:00:04]} 52. Kg2 {[%emt 0:00:14]} Kf8 {[%emt 0:01:12]} 53. Kh2 {[%emt 0:00:07]} Kg8 {[%emt 0:00:17]} 54. Kg2 {[%emt 0:00:39]} Rb1 {[%emt 0:00:50]} 55. Rxa2 {[%emt 0:00:05]} Rxb4 {[%emt 0:00:02]} 56. Ra6 {[%emt 0:00:20]} Rxg4+ {[%emt 0:00:33]} 57. Kh3 {[%emt 0:00:02]} Rc4 {[%emt 0:00:32]} 58. Rxc6 {[%emt 0:00:04]} Kf7 {[%emt 0:00:19]} 59. Rc7+ {[%emt 0:01:02]} Kf6 {[%emt 0:01:15]} 60. Rc8 {[%emt 0:01:28]} Rc3+ {[%emt 0:00:16]} 61. Kg2 {[%emt 0:00:10]} Ke7 {[%emt 0:01:33]} 62. c6 {[%emt 0:00:32]} Kd6 {[%emt 0:00:21]} 63. Rd8+ {[%emt 0:00:51]} Kc7 {[%emt 0:00:58]} 64. Rd7+ {[%emt 0:00:03]} Kc8 {[%emt 0:00:37]} 65. Rxg7 {[%emt 0:00:18]} Rxc6 {[%emt 0:00:01]} 66. Kg3 {[%emt 0:00:15]} Kd8 {[%emt 0:00:12]} 67. Kg4 {[%emt 0:00:27]} Ke8 {[%emt 0:00:02]} 68. Kg5 {[%emt 0:00:39]} Kf8 {[%emt 0:00:46]} 69. Ra7 {[%emt 0:00:14]} Rb6 {[%emt 0:00:25]} 70. Kh6 {[%emt 0:02:35]} Rb4 {[%emt 0:00:47]} 71. Kg5 {[%emt 0:00:48]} Rb6 {[%emt 0:00:20]} 72. Rd7 {[%emt 0:01:00]} Ra6 {[%emt 0:00:46]} 73. Rd4 {[%emt 0:00:14]} Kg7 {[%emt 0:00:58]} 74. Rd7+ {[%emt 0:00:23]} Kf8 {[%emt 0:00:02]} 75. Rh7 {[%emt 0:00:22]} Kg8 {[%emt 0:00:52]} 76. Rb7 {[%emt 0:00:52]} Kf8 {[%emt 0:00:02]} 77. Rb4 {[%emt 0:01:36]} Kg7 {[%emt 0:00:33]} 78. Rb5 $1 {[%emt 0:00:17]} Rc6 {[%emt 0:00:48]} 79. Rb7+ {[%emt 0:00:23]} Kf8 {[%emt 0:00:03]} 80. Kh6 {[%emt 0:00:21]} Rc4 {[%emt 0:00:21]} 81. Kxg6 $11 Rxh4 1/2-1/2

[Event "21st Alekhine FIDE 2017"]
[Site "Voronezh"]
[Date "2017.06.15"]
[Round "4"]
[White "Presnyakov, Kirill"]
[Black "Manukovsky, Vladimir"]
[Result "0-1"]
[ECO "A43"]
[WhiteElo "1876"]
[BlackElo "2200"]
[Annotator "ChessBase"]
[PlyCount "124"]
[EventDate "2017.??.??"]
[EventType "swiss"]
[EventCountry "RUS"]
[SourceTitle "playchess.com"]
[Source "ChessBase"]
[SourceQuality "1"]
[TimeControl "40/5400+30:1800+30"]

1. d4 c5 2. d5 b5 3. e3 Ba6 4. a4 b4 5. Bxa6 Nxa6 6. b3 Nf6 7. Qd3 Nc7 8. e4 g6 9. Bb2 Bg7 10. Nd2 d6 11. Nc4 O-O 12. Ne2 Qd7 13. f3 Rae8 14. O-O-O Rd8 15. g4 Na8 16. h4 Nb6 17. Ng3 Nxc4 18. Qxc4 e6 19. g5 Ne8 20. f4 exd5 21. exd5 f5 22. Rde1 Nc7 23. Re3 Bxb2+ 24. Kxb2 Qf7 25. Rhe1 Qxd5 26. Re7 Qxc4 27. bxc4 Rf7 28. h5 Kf8 29. Rxf7+ Kxf7 30. hxg6+ hxg6 31. Rh1 Ne6 32. Rh7+ Ng7 33. Rh1 Re8 34. Rd1 Re6 35. a5 Ke7 36. Rd2 Re3 37. Re2 Rxe2 38. Nxe2 Ne6 39. c3 bxc3+ 40. Kxc3 Kd7 41. Kd3 Kc6 42. Ke3 {[%emt 2:19:16]} Nc7 {[%emt 1:08:49]} 43. Ng1 {[%emt 0:00:40]} Kb7 {[%emt 0:00:59]} 44. Nf3 {[%emt 0:00:29]} Ne6 {[%emt 0:00:06]} 45. Nd2 {[%emt 0:01:18]} Nd4 {[%emt 0:00:49]} 46. Nb1 {[%emt 0:00:26]} Ka6 {[%emt 0:00:05]} 47. Nc3 {[%emt 0:00:04]} Kxa5 {[%emt 0:00:06]} 48. Nd5 {[%emt 0:00:09]} Ne6 {[%emt 0:00:31]} 49. Kd3 {[%emt 0:00:38]} Ka6 {[%emt 0:02:03]} 50. Kc3 {[%emt 0:00:52]} Nd4 {[%emt 0:00:26]} 51. Kd3 {[%emt 0:00:32]} Ne6 {[%emt 0:00:15]} 52. Kc3 {[%emt 0:00:01]} Kb7 {[%emt 0:00:09]} 53. Kb3 {[%emt 0:00:13]} Nd4+ {[%emt 0:01:09]} 54. Ka4 {[%emt 0:01:17]} Nc6 {[%emt 0:00:15]} 55. Kb5 {[%emt 0:00:52]} a6+ {[%emt 0:00:02]} 56. Ka4 {[%emt 0:00:01]} Kc8 {[%emt 0:00:21]} 57. Nb6+ {[%emt 0:01:04]} Kd8 {[%emt 0:00:19]} 58. Nd5 {[%emt 0:00:15]} Ne7 {[%emt 0:00:28]} 59. Ne3 {[%emt 0:00:28]} Kc7 {[%emt 0:00:15]} 60. Ka5 {[%emt 0:00:41]} Kb7 {[%emt 0:00:02]} 61. Ng2 {[%emt 0:00:33]} d5 {[%emt 0:00:04]} 62. cxd5 {[%emt 0:00:27]} Nxd5 {[%emt 0:00:01]} 0-1

[Event "21st Alekhine FIDE 2017"]
[Site "Voronezh"]
[Date "2017.06.15"]
[Round "4"]
[White "Buyukli, Egor"]
[Black "Kazmin, Semen"]
[Result "1/2-1/2"]
[ECO "E90"]
[WhiteElo "1749"]
[BlackElo "2086"]
[Annotator "NA RC"]
[PlyCount "118"]
[EventDate "2017.??.??"]
[EventType "swiss"]
[EventCountry "RUS"]
[SourceTitle "playchess.com"]
[Source "ChessBase"]
[SourceQuality "1"]
[TimeControl "40/5400+30:1800+30"]

{[%evp 8,118,46,33,36,26,39,42,44,-4,-1,-16,40,41,34,39,51,11,1,8,15,10,0,-4,17,10,8,4,9,13,10,2,4,4,23,13,16,0,-4,-10,0,0,0,-14,0,-3,-9,0,0,0,0,0,0,-18,0,-17,-12,-56,-45,-60,-53,-76,-71,-106,-72,-14,-12,-117,-89,-116,-124,-153,-198,-233,-118,-134,-66,-127,-73,-131,-89,-116,-54,-329,-263,-317,-385,-430,0,-367,0,-380,0,-402,0,0,-20,-14,-16,-23,-8,-8,0,-8,0,0,0,0,0,0,0,0,0]} 1. d4 {[%emt 0:01:49]} Nf6 {[%emt 0:00:08]} 2. c4 {[%emt 0:00:05]} g6 {[%emt 0:00:06]} 3. Nc3 {[%emt 0:00:07]} Bg7 {[%emt 0:00:06]} 4. e4 {[%emt 0:00:07]} d6 {[%emt 0:00:05]} 5. Nf3 {[%emt 0:00:14]} O-O {[%emt 0:00:12]} 6. Be3 {[%emt 0:00:05]} e5 {[%emt 0:00:29]} 7. dxe5 {[%emt 0:00:13]} dxe5 {[%emt 0:00:08]} 8. Qxd8 {[%emt 0:00:20]} ({But not} 8. Nxe5 Nxe4 9. Nxe4 Bxe5 $15) 8... Rxd8 {[%emt 0:00:02]} 9. Nd5 {[%emt 0:00:28]} Nxd5 {[%emt 0:00:29] LiveBook: 44 Games} (9... Rd7 $11) 10. cxd5 {[%emt 0:00:11]} c6 {[%emt 0:13:13]} 11. Bc4 $1 {[%emt 0:02:01]} h6 {[%emt 0:01:26]} 12. h3 {[%emt 0:01:47]} b5 {[%emt 0:04:39]} 13. Bb3 {[%emt 0:00:28]} Bb7 {[%emt 0:00:26]} 14. Rc1 {[%emt 0:07:21]} a5 {[%emt 0:30:05]} 15. O-O {[%emt 0:12:13]} a4 {[%emt 0:02:42]} 16. dxc6 {[%emt 0:01:08]} Bxc6 {[%emt 0:03:18]} 17. Bc2 {[%emt 0:00:08]} Bb7 {[%emt 0:04:38]} 18. Rfd1 {[%emt 0:07:27]} Nc6 {[%emt 0:00:54]} 19. Bb6 {[%emt 0:00:23]} Rxd1+ {[%emt 0:02:18]} 20. Rxd1 {[%emt 0:00:02]} Nb4 {[%emt 0:03:49]} 21. Bb1 {[%emt 0:00:56]} Rc8 {[%emt 0:05:26]} 22. Rd8+ {[%emt 0:01:09]} Rxd8 {[%emt 0:00:13]} 23. Bxd8 {[%emt 0:00:03]} Nc6 {[%emt 0:03:11]} 24. Bb6 {[%emt 0:01:16]} Nb8 {[%emt 0:02:57]} 25. Bc7 {[%emt 0:07:30]} Nd7 {[%emt 0:00:34]} 26. Bd6 {[%emt 0:00:14]} Bc6 {[%emt 0:03:04]} 27. Kf1 {[%emt 0:04:40]} f6 {[%emt 0:02:01]} 28. Ke2 {[%emt 0:09:54]} Bf8 {[%emt 0:00:34]} 29. Bxf8 {[%emt 0:00:46]} Kxf8 {[%emt 0:00:28]} 30. Nd2 {[%emt 0:01:42]} Ke7 {[%emt 0:00:59]} 31. b4 {[%emt 0:01:21]} axb3 {[%emt 0:00:44]} 32. axb3 {[%emt 0:00:04]} Nc5 {[%emt 0:00:49]} 33. g3 {[%emt 0:06:18]} Kd6 {[%emt 0:01:36]} 34. f4 {[%emt 0:05:48]} Bd7 {[%emt 0:05:44]} 35. h4 {[%emt 0:03:10]} Be6 {[%emt 0:00:22]} 36. Bc2 {[%emt 0:01:42]} Na6 {[%emt 0:00:36]} 37. Ke3 {[%emt 0:03:43]} (37. fxe5+ $11 fxe5 38. Kd3) 37... Nb4 {[%emt 0:01:36]} 38. Bd1 {[%emt 0:00:18] [#]} Kc5 $1 {[%emt 0:00:54]} 39. fxe5 {[%emt 0:02:42]} (39. f5 $142 gxf5 40. exf5 Bxf5 41. Ne4+ Bxe4 42. Kxe4) 39... fxe5 {[%emt 0:00:01]} 40. Nf3 {[%emt 0:00:00] [#]} Nc6 {[%emt 0:00:12]} ({Black should try} 40... Bg4 $1 $19 41. Kd2 Nc6) 41. Ne1 {[%emt 0:31:06] [#]} Kb4 $1 {[%emt 0:35:11]} 42. Nd3+ {[%emt 0:00:07]} Kc3 {[%emt 0:00:17]} 43. Nc5 {[%emt 0:00:30]} Bf7 {[%emt 0:00:30]} (43... Bc8 $142 44. h5 gxh5 45. Bxh5 Nd4) 44. Be2 {[%emt 0:04:43]} Nd4 {[%emt 0:01:58]} 45. Bd3 $2 {[%emt 0:01:18]} (45. Bxb5 $17 Nxb5 46. Nd7) 45... Bxb3 {[%emt 0:00:47]} ({Weaker is} 45... Nxb3 46. Nxb3 Bxb3 47. Bxb5 $11) 46. Nd7 {[%emt 0:00:15]} (46. Bxb5 {was the only defense.} Nxb5 47. Nd7) 46... Nc2+ {[%emt 0:00:42]} 47. Ke2 $1 {[%emt 0:01:15]} Nd4+ $2 {[%emt 0:00:48]} ({Better is} 47... b4 $19 48. Nb6 Kd4 (48... Nd4+ 49. Ke3 Bc2 50. Nd5+ Kb3 51. Bxc2+ Nxc2+ 52. Kd2 Kb2)) 48. Ke3 {[%emt 0:00:05]} Nc2+ {[%emt 0:01:10]} 49. Ke2 {[%emt 0:00:10]} Nd4+ {[%emt 0:00:53]} 50. Ke3 {[%emt 0:00:20]} Bc2 $2 {[%emt 0:00:29]} 51. Bxb5 $1 {[%emt 0:07:46]} Nxb5 {[%emt 0:00:08]} 52. Nxe5 {[%emt 0:00:05]} Nd6 {[%emt 0:00:43]} 53. Nxg6 {[%emt 0:00:07]} Bxe4 {[%emt 0:00:30]} 54. Ne5 {[%emt 0:00:42]} Bd5 {[%emt 0:00:43]} 55. g4 {[%emt 0:00:35]} Bb3 {[%emt 0:01:06]} 56. g5 {[%emt 0:06:18]} h5 {[%emt 0:00:04]} 57. g6 {[%emt 0:00:39]} Nf5+ {[%emt 0:00:44]} 58. Kf4 {[%emt 0:00:29]} Nxh4 {[%emt 0:00:10]} 59. Kg5 {[%emt 0:00:11] [#]} Nxg6 $11 {[%emt 0:00:07]} 1/2-1/2

[Event "21st Alekhine FIDE 2017"]
[Site "Voronezh"]
[Date "2017.06.16"]
[Round "5"]
[White "Kazmin, Semen"]
[Black "Piskov, Vladimir A"]
[Result "1/2-1/2"]
[ECO "B06"]
[WhiteElo "2086"]
[BlackElo "1909"]
[Annotator "NA RC"]
[PlyCount "133"]
[EventDate "2017.??.??"]
[EventType "swiss"]
[EventCountry "RUS"]
[SourceTitle "playchess.com"]
[Source "ChessBase"]
[SourceQuality "1"]
[TimeControl "40/5400+30:1800+30"]

{[%evp 9,133,47,50,29,62,54,74,109,101,97,79,32767,86,32767,254,28,23,0,29,3,29,21,33,0,46,-62,-60,-62,-62,-56,-58,-75,-25,-60,0,26,12,28,24,0,0,-100,-80,-89,-75,-96,-75,-96,-112,-106,-99,-100,0,32767,32767,32767,0,32767,32767,32767,0,32767,74,12,18,11,2,0,0,15,3,0,0,0,0,2,0,0,0,0,0,0,0,0,0,0,0,0,0,0,0,0,491,0,21,35,742,0,0,0,12838,0,0,0,0,0,0,0,12836,782,704,0,1,1,4134,0,0,32767,32767,32767,32767,0,0,0,0,0]} 1. e4 {[%emt 0:00:00]} g6 {[%emt 0:00:03]} 2. d4 {[%emt 0:00:00]} Bg7 {[%emt 0:00:05]} 3. Nc3 {[%emt 0:00:00]} c6 {[%emt 0:00:24]} 4. f4 {[%emt 0:00:03]} d5 {[%emt 0:00:13]} 5. e5 {[%emt 0:00:18]} Nh6 {[%emt 0:00:20]} 6. Nf3 {[%emt 0:00:19]} Bg4 {[%emt 0:00:35]} 7. Be3 {[%emt 0:00:15] LiveBook: 77 Games} (7. h3 $5 {[%cal Rh3g4]} Bxf3 8. Qxf3 $14) 7... O-O {[%emt 0:00:25]} 8. h3 {[%emt 0:00:49]} Bxf3 {[%emt 0:00:10]} 9. Qxf3 {[%emt 0:00:03]} f6 {[%emt 0:00:28]} 10. exf6 {[%emt 0:01:39] B15: Caro-Kann: 3 Nc3: 3...g6 and 3...dxe4 4 Nxe4 Nf6 5 Nxf6+ exf6} (10. Qe2 fxe5 11. dxe5 e6 12. O-O-O Nd7 13. h4 c5 14. Nb5 Nf5 15. Bf2 a6 16. Nc3 b5 17. g3 Qc7 {1-0 (51) Hracek,Z (2612)-Hamitevici,V (2487) Minsk 2017}) 10... Bxf6 {[%emt 0:00:24]} 11. O-O-O {[%emt 0:00:55]} e5 {[%emt 0:04:05]} (11... Qd6 $16) 12. fxe5 $2 {[%emt 0:02:52]} (12. dxe5 $18 Bxe5 13. Nxd5 cxd5 14. Rxd5) 12... Bxe5 {[%emt 0:00:38]} 13. Qe2 {[%emt 0:01:00]} Bg7 {[%emt 0:00:34]} 14. g4 {[%emt 0:00:37]} Nd7 {[%emt 0:02:28]} 15. Qd2 $146 {[%emt 0:03:38]} ({Predecessor:} 15. Kb1 b5 16. Bxh6 Bxh6 17. Qe6+ Kh8 18. Qxc6 {1-0 (42) Caderon,M (1999)-Lebret,L (1690) Lille 2015}) 15... Nf7 {[%emt 0:01:01]} 16. Bd3 {[%emt 0:01:32]} Qb6 {[%emt 0:02:57]} 17. Ne2 {[%emt 0:03:27] [#]} (17. Na4 $14 Qc7 18. h4) 17... Nc5 $1 {[%emt 0:12:19]} 18. Rde1 {[%emt 0:15:17]} Nxd3+ {[%emt 0:03:35]} 19. cxd3 {[%emt 0:00:33]} Rae8 {[%emt 0:02:35]} 20. h4 {[%emt 0:02:35]} Nd6 {[%emt 0:01:21]} (20... c5 $5 21. dxc5 Qc6 $17) 21. h5 {[%emt 0:06:12]} Nb5 {[%emt 0:18:48]} ({Black should play} 21... Rf3 $15 22. Bg5 Qa6 23. hxg6 hxg6) 22. hxg6 {[%emt 0:01:32]} hxg6 {[%emt 0:01:37]} 23. Bh6 {[%emt 0:04:18]} Qc7 {[%emt 0:00:17]} ({But not} 23... Nxd4 $2 24. Bxg7 Qc5+ 25. Nc3 $18) 24. Rh3 {[%emt 0:06:23]} (24. Qg5 $11) 24... Rf2 {[%emt 0:04:08]} 25. Be3 {[%emt 0:15:26]} (25. Re3 $11 Rc8 26. Bxg7 Qxg7 27. Re5) 25... Rg2 {[%emt 0:02:51]} 26. a4 {[%emt 0:12:48]} Nd6 {[%emt 0:07:42]} 27. Bf4 {[%emt 0:02:52]} c5 {[%emt 0:04:07]} 28. Rh2 {[%emt 0:06:49]} cxd4+ {[%emt 0:01:06]} 29. Kb1 {[%emt 0:00:05] [#]} Rxh2 $1 {[%emt 0:01:25]} 30. Bxh2 {[%emt 0:00:02]} Qe7 {[%emt 0:00:51]} ({Black should try} 30... Ne4 $17 31. Bxc7 Nxd2+ 32. Kc1 Nf3) 31. Bg3 {[%emt 0:01:16]} Qf6 {[%emt 0:03:54]} 32. Nf4 {[%emt 0:06:02]} Qg5 {[%emt 0:07:02]} 33. Rxe8+ {[%emt 0:01:25]} Nxe8 {[%emt 0:00:05]} 34. Qe1 {[%emt 0:01:50]} Nc7 {[%emt 0:03:03]} 35. Qe2 {[%emt 0:01:43]} Kf7 {[%emt 0:04:43] [#]} (35... Qe5 $11) 36. Nh3 {[%emt 0:00:41]} (36. Nxg6 $1 $16 Qxg6 37. Bxc7) 36... Qd8 {[%emt 0:02:35]} 37. Bxc7 {[%emt 0:01:46]} Qxc7 {[%emt 0:00:02]} 38. Ng5+ {[%emt 0:00:32]} Kf6 {[%emt 0:01:26]} 39. Nh7+ {[%emt 0:00:58]} Kf7 {[%emt 0:00:02]} 40. Qf3+ {[%emt 0:00:43]} Kg8 {[%emt 0:33:26]} 41. Nf6+ {[%emt 0:30:14]} Bxf6 $1 {[%emt 0:03:29]} 42. Qxf6 {[%emt 0:00:02]} Qf7 {[%emt 0:01:33]} 43. Qxd4 {[%emt 0:00:17]} b6 {[%emt 0:00:01]} 44. Ka2 {[%emt 0:00:49]} Qe6 {[%emt 0:01:11]} 45. Qf4 {[%emt 0:00:48]} Kg7 {[%emt 0:00:57]} 46. d4 {[%emt 0:00:50]} Qf6 {[%emt 0:01:08]} 47. Qc7+ {[%emt 0:00:11]} Kh6 {[%emt 0:00:10]} 48. Qc1+ {[%emt 0:00:39]} Kg7 {[%emt 0:00:54]} 49. Qe3 {[%emt 0:00:18]} Kf7 {[%emt 0:00:33]} 50. Kb3 {[%emt 0:00:42]} Qe6 $2 {[%emt 0:00:39] [#]} (50... Qf1 $11) 51. Qf4+ {[%emt 0:00:15]} (51. Qxe6+ $1 $18 Kxe6 52. Kb4) 51... Qf6 {[%emt 0:00:51]} 52. Qc7+ {[%emt 0:00:29]} Qe7 $2 {[%emt 0:00:01] [#]} (52... Kg8 $14) 53. Qf4+ $2 {[%emt 0:00:41]} ({White has to play} 53. Qxe7+ $1 $18 Kxe7 54. Kb4) 53... Qf6 {[%emt 0:00:22]} 54. Qe3 {[%emt 0:00:29]} Qe6 {[%emt 0:00:29] [#]} 55. Qf3+ $2 {[%emt 0:00:28]} Ke7 {[%emt 0:00:30]} 56. Qg3 {[%emt 0:00:58]} Kd7 {[%emt 0:00:28]} 57. Qf4 {[%emt 0:00:29]} Kc6 {[%emt 0:00:40]} 58. Ka3 {[%emt 0:00:26]} Qd6+ $2 {[%emt 0:01:04]} (58... a5 $11 59. Qf3 g5) 59. Qxd6+ {[%emt 0:00:13]} Kxd6 {[%emt 0:00:01] [#]} 60. Kb4 $2 {[%emt 0:00:29]} (60. a5 $1 $18 {[%cal Ra5b6][%mdl 512]} Ke7 (60... bxa5 61. Ka4) 61. Ka4) 60... Kc6 {[%emt 0:00:59]} 61. a5 {[%emt 0:00:43]} b5 $2 {[%emt 0:00:33]} (61... g5 $11) 62. Kc3 $2 {[%emt 0:00:25]} (62. a6 $18 Kb6 63. g5) 62... a6 {[%emt 0:00:25]} 63. b4 {[%emt 0:00:26]} Kd6 {[%emt 0:00:02]} 64. Kd3 {[%emt 0:00:06]} Ke6 {[%emt 0:00:48]} 65. Ke3 {[%emt 0:00:01]} Kf6 {[%emt 0:00:15]} 66. Kf4 $11 {[%emt 0:00:11]} g5+ {[%emt 0:00:23]} 67. Ke3 {[%emt 0:00:05]} 1/2-1/2